bitfinex-derivatives/quotes_SOLF0:USTF0_20240905
["timestamp","ask_amount","ask_price","bid_price","bid_amount"]
[1725526995154,0.05067103,132.68,132.67,14.4084]
[1725526997059,3.7676,132.72,132.69,3.7682]
[1725526997351,3.7676,132.72,132.69,13.0382]
[1725526998154,3.81831805,132.72,132.69,13.09385284]
[1725526999056,3.81831805,132.72,132.69,3.82385284]
[1725526999556,9.32071805,132.72,132.69,0.05565284]
[1725526999949,3.768,132.7,132.69,0.05565284]
[1725527003858,13.038,132.7,132.69,0.05565284]
[1725527004855,3.7691,132.67,132.64,7.45306796]
[1725527005056,9.27,132.69,132.64,3.7696]
[1725527005760,9.27,132.69,132.65,0.05646904]
[1725527005761,0.04858562,132.68,132.65,0.05646904]
[1725527005960,3.7691,132.67,132.65,0.05646904]
[1725527006162,0.04858562,132.68,132.65,3.82586904]
[1725527006656,3.81738562,132.68,132.65,3.82586904]
[1725527008855,3.81728562,132.68,132.65,3.82586904]
[1725527009056,0.04858562,132.68,132.65,0.05646904]
[1725527009557,3.7692,132.66,132.65,0.05646904]
[1725527015564,9.31858562,132.68,132.65,0.05646904]
[1725527015565,3.769,132.67,132.65,0.05646904]
[1725527015758,3.769,132.67,132.65,9.32646904]
[1725527021369,3.769,132.67,132.65,13.09586904]
[1725527028282,3.769,132.67,132.65,9.32646904]
[1725527028777,0.04858562,132.68,132.66,13.039]
[1725527029082,0.04858562,132.68,132.66,9.27]
[1725527029280,0.04858562,132.68,132.65,0.05646904]
[1725527029281,3.7691,132.67,132.65,0.05646904]
[1725527029882,3.7692,132.66,132.65,0.05646904]
[1725527036987,0.04858562,132.68,132.65,0.05646904]
[1725527037690,3.7692,132.66,132.65,0.05646904]
[1725527038891,0.04858562,132.68,132.65,9.32646904]
[1725527040484,3.7689,132.67,132.65,13.09576904]
[1725527042388,0.04858562,132.68,132.66,3.7691]
[1725527042688,0.04858562,132.68,132.66,13.0391]
[1725527043487,0.04858562,132.68,132.67,13.0389]
[1725527044294,9.27,132.73,132.69,3.7682]
[1725527044487,9.27,132.73,132.67,9.27]
[1725527044488,3.69874186,132.78,132.7,13.12161419]
[1725527044689,9.27,132.77,132.7,13.12161419]
[1725527044994,3.84746659,132.76,132.71,3.7677]
[1725527045188,39.793,132.8,132.71,3.7677]
[1725527045189,9.27,132.77,132.71,3.7677]
[1725527045388,0.05741196,132.75,132.73,0.04791349]
[1725527046288,3.7671,132.74,132.73,0.04791349]
[1725527050391,13.0371,132.74,132.73,0.04791349]
[1725527056997,3.7671,132.74,132.73,0.04791349]
[1725527057195,3.82411196,132.75,132.73,0.04791349]
[1725527057394,0.05741196,132.75,132.73,0.04791349]
[1725527057589,0.05741196,132.75,132.73,9.31791349]
[1725527058099,13.02339007,132.82,132.73,9.27]
[1725527058302,9.27,132.82,132.76,13.0362]
[1725527058488,3.7735429,132.81,132.76,13.0362]
[1725527059100,3.7657,132.79,132.77,0.05063688]
[1725527059891,3.7658,132.78,132.77,0.05063688]
[1725527068305,13.0358,132.78,132.77,0.05063688]
[1725527077803,3.7658,132.78,132.77,0.05063688]
[1725527080007,13.0358,132.78,132.77,0.05063688]
[1725527080202,3.7658,132.78,132.77,0.05063688]
[1725527091508,13.0358,132.78,132.77,0.05063688]
[1725527092712,3.7658,132.78,132.77,0.05063688]
[1725527093115,3.7657,132.79,132.77,0.05063688]
[1725527095318,3.7658,132.78,132.77,0.05063688]
[1725527106529,0.27701847,132.78,132.68,9.27]
[1725527106734,0.27701847,132.77,132.68,9.27]
[1725527107031,3.7678,132.71,132.68,9.27]
[1725527107221,3.85590258,132.73,132.68,9.27]
[1725527107422,3.85590258,132.73,132.68,9.32034638]
[1725527107423,3.81967334,132.71,132.68,9.32034638]
[1725527107723,3.81967334,132.71,132.69,1.3319]
[1725527109419,3.768,132.7,132.69,1.3319]
[1725527110723,3.7683,132.69,132.68,0.05034638]
[1725527112925,13.0383,132.69,132.68,0.05034638]
[1725527119629,3.7697,132.64,132.63,1.3126]
[1725527121029,3.77,132.63,132.62,0.04893681]
[1725527121233,13.04,132.63,132.62,0.04893681]
[1725527124725,13.04,132.63,132.58,1.3332]
[1725527124726,3.7716,132.58,132.55,9.27]
[1725527125136,3.7716,132.58,132.56,1.2962]
[1725527125831,3.82338456,132.58,132.56,1.34625553]
[1725527128339,3.7717,132.57,132.56,1.34625553]
[1725527131334,0.05178456,132.58,132.56,1.34625553]
[1725527131335,3.82338456,132.58,132.56,1.34625553]
[1725527131538,3.82338456,132.58,132.56,2.63485553]
[1725527134130,3.7717,132.57,132.56,2.63485553]
[1725527136137,0.05178456,132.58,132.56,2.63485553]
[1725527136138,3.82338456,132.58,132.56,2.63485553]
[1725527137145,3.7717,132.57,132.56,2.63485553]
[1725527145238,3.7717,132.57,132.56,0.05005553]
[1725527145643,13.0417,132.57,132.56,0.05005553]
[1725527148652,3.7717,132.57,132.56,0.05005553]
[1725527150342,0.05178456,132.58,132.56,0.05005553]
[1725527150544,3.82348456,132.58,132.56,0.05005553]
[1725527153559,3.7717,132.57,132.56,0.05005553]
[1725527157257,13.0417,132.57,132.56,0.05005553]
[1725527159654,3.7717,132.57,132.56,0.05005553]
[1725527161453,13.0417,132.57,132.56,0.05005553]
[1725527162661,9.27,132.57,132.4,93.53763527]
[1725527162853,9.27,132.53,132.47,9.27]
[1725527163263,3.7733,132.52,132.49,3.774]
[1725527163763,3.82361038,132.52,132.49,3.82820511]
[1725527164060,0.05031038,132.52,132.5,7.62237924]
[1725527164258,0.05031038,132.52,132.5,15.83777924]
[1725527164465,9.27,132.56,132.51,1.3199]
[1725527164760,3.7724,132.55,132.51,5.0931]
[1725527165354,3.7724,132.55,132.52,0.04987842]
[1725527165355,0.05335429,132.54,132.52,0.04987842]
[1725527165558,3.82615429,132.54,132.52,0.04987842]
[1725527165759,0.05335429,132.54,132.52,0.04987842]
[1725527167459,3.7729,132.53,132.52,0.04987842]
[1725527168055,3.7729,132.53,132.43,15.07049622]
[1725527168056,9.27,132.53,132.46,9.27]
[1725527168256,9.27,132.52,132.46,9.27]
[1725527169063,0.05741836,132.5,132.48,0.04869972]
[1725527169259,3.83131836,132.5,132.48,0.04869972]
[1725527170466,3.774,132.49,132.48,0.04869972]
[1725527175158,3.7749,132.46,132.4,93.53763527]
[1725527175363,3.7749,132.46,132.42,9.27]
[1725527175961,3.7749,132.46,132.43,3.7756]
[1725527176164,3.7749,132.46,132.43,0.04758393]
[1725527176165,0.05001621,132.46,132.43,0.04758393]
[1725527176968,3.7753,132.45,132.43,0.04758393]
[1725527178871,3.7753,132.45,132.43,3.82328393]
[1725527179267,0.05001621,132.46,132.43,0.04758393]
[1725527179574,9.27,132.51,132.44,9.27]
[1725527179770,9.27,132.51,132.46,9.27]
[1725527179964,3.76982328,132.53,132.47,9.27]
[1725527180171,3.81362331,132.55,132.48,10.6645]
[1725527180470,3.7732,132.52,132.5,0.05122473]
[1725527181270,9.27,132.51,132.41,1.3947]
[1725527181575,9.27,132.51,132.44,9.27]
[1725527181875,3.7739,132.5,132.45,9.27]
[1725527182374,0.04841866,132.49,132.47,3.7744]
[1725527182573,0.04841866,132.49,132.48,3.80850279]
[1725527183965,9.27,132.54,132.49,3.82597206]
[1725527184473,3.72480181,132.55,132.49,3.7739]
[1725527184671,9.27,132.53,132.49,7.4545342]
[1725527184871,0.05184207,132.52,132.5,0.04904584]
[1725527185082,3.82524207,132.52,132.5,0.04904584]
[1725527185468,0.05184207,132.52,132.5,0.04904584]
[1725527185867,9.27,132.51,132.47,1.3115]
[1725527186072,9.27,132.48,132.43,3.77765194]
[1725527186277,3.74745186,132.51,132.43,9.27]
[1725527186472,9.27,132.49,132.44,3.7202718]
[1725527186673,9.27,132.49,132.44,3.7753]
[1725527187079,0.05760977,132.48,132.45,0.05755316]
[1725527187279,3.83210977,132.48,132.45,0.05755316]
[1725527187480,0.05760977,132.48,132.45,0.05755316]
[1725527187780,3.7746,132.47,132.45,0.05755316]
[1725527187984,0.05760977,132.48,132.45,0.05755316]
[1725527188575,3.7748,132.47,132.45,0.05755316]
[1725527190084,3.7749,132.46,132.45,0.05755316]
[1725527191689,3.7749,132.46,132.29,12.01234122]
[1725527191690,9.27,132.46,132.26,226.0]
[1725527191991,9.27,132.44,132.36,11.9846]
[1725527192185,9.27,132.44,132.36,15.84098499]
[1725527192594,0.05073348,132.41,132.39,0.04792775]
[1725527192891,0.04842751,132.41,132.39,0.05811133]
[1725527194189,3.82482751,132.41,132.39,0.05811133]
[1725527195188,0.04842751,132.41,132.39,9.32811133]
[1725527195592,0.04842751,132.41,132.4,3.7766]
[1725527196784,3.7759,132.43,132.4,3.7766]
[1725527196985,3.7759,132.43,132.4,5.1922]
[1725527197791,3.83101375,132.43,132.4,5.1922]
[1725527202889,0.05511375,132.43,132.4,1.4156]
[1725527203390,0.05511375,132.43,132.41,1.3666]
[1725527203699,0.05511375,132.43,132.41,5.1427]
[1725527204302,3.83111375,132.43,132.41,1.3666]
[1725527205501,3.776,132.42,132.39,3.83481133]
[1725527209200,3.83091375,132.43,132.39,9.32811133]
[1725527209408,0.05511375,132.43,132.39,9.32811133]
[1725527209705,0.05511375,132.43,132.41,3.7761]
[1725527210196,0.05511375,132.43,132.41,3.7763]
[1725527210398,0.05511375,132.43,132.42,1.3787]
[1725527210596,82.92033603,132.5,132.42,10.6487]
[1725527210597,9.27,132.5,132.42,10.6487]
[1725527210796,3.7744,132.48,132.45,3.775]
[1725527211006,3.7744,132.48,132.46,3.86216012]
[1725527211498,3.82315692,132.48,132.46,3.91517573]
[1725527215595,0.04875692,132.48,132.46,3.91517573]
[1725527216001,0.04875692,132.48,132.47,3.7746]
[1725527220202,9.27,132.57,132.47,9.27]
[1725527220403,11.3089,132.65,132.46,42.30067573]
[1725527220404,2.7114,132.64,132.54,9.27]
[1725527220604,3.771,132.6,132.54,13.08125311]
[1725527220803,6.52491834,132.64,132.55,9.27]
[1725527221005,6.52491834,132.64,132.57,9.27]
[1725527221203,7.5365,132.7,132.58,9.32755361]
[1725527221204,0.0553173,132.61,132.58,9.32755361]
[1725527221404,0.04808119,132.61,132.59,3.7709]
[1725527222310,0.04808119,132.61,132.58,0.05434788]
[1725527223207,0.04808119,132.61,132.59,3.771]
[1725527223417,0.04808119,132.61,132.59,13.041]
[1725527223906,0.04808119,132.61,132.59,3.771]
[1725527225306,0.04808119,132.61,132.59,3.7712]
[1725527226310,0.04808119,132.61,132.59,23.17]
[1725527226706,0.04808119,132.61,132.6,3.7709]
[1725527227208,23.17,132.74,132.6,3.7709]
[1725527227209,23.17,132.74,132.63,3.7699]
[1725527227411,23.17,132.7,132.64,3.81505506]
[1725527227607,23.17,132.7,132.6,23.17]
[1725527227808,23.17,132.7,132.63,3.7698]
[1725527228012,23.17,132.7,132.64,3.72378941]
[1725527228208,3.7689,132.67,132.6,23.17]
[1725527228409,3.7689,132.67,132.63,3.7698]
[1725527228603,0.04881131,132.65,132.64,3.85955649]
[1725527229510,0.04881131,132.65,132.63,3.7698]
[1725527229815,0.04881131,132.65,132.63,3.84557381]
[1725527230716,0.04881131,132.65,132.62,0.05428232]
[1725527231108,0.04881131,132.65,132.62,23.22428232]
[1725527231417,0.04881131,132.65,132.62,27.06156176]
[1725527231618,0.04881131,132.65,132.63,3.7699]
[1725527232314,0.04881131,132.65,132.64,3.74528728]
[1725527239123,0.04881131,132.65,132.62,0.05428232]
[1725527240122,3.81841131,132.65,132.62,3.82458232]
[1725527240318,0.04881131,132.65,132.62,0.05428232]
[1725527241418,3.77,132.63,132.62,0.05428232]
[1725527242221,3.7699,132.64,132.62,0.05428232]
[1725527243622,3.81841131,132.65,132.62,3.82458232]
[1725527244221,3.7699,132.64,132.62,0.05428232]
[1725527245534,3.77,132.63,132.62,0.05428232]
[1725527246429,3.7711,132.6,132.57,96.12307133]
[1725527246927,3.7711,132.6,132.57,99.89467133]
[1725527247118,3.7711,132.6,132.57,96.21810094]
[1725527247317,3.7712,132.59,132.57,0.0480784]
[1725527247718,3.7714,132.58,132.57,0.0480784]
[1725527250224,3.7713,132.59,132.57,0.0480784]
[1725527254729,3.8247127,132.6,132.57,3.88323494]
[1725527256432,0.0537127,132.6,132.58,3.7714]
[1725527256933,0.0537127,132.6,132.59,3.7712]
[1725527258631,0.0537127,132.6,132.57,27.05323494]
[1725527259235,0.0537127,132.6,132.58,3.7714]
[1725527261939,0.0537127,132.6,132.58,13.0414]
[1725527262942,3.8246127,132.6,132.58,3.7714]
[1725527263736,0.0537127,132.6,132.58,3.7714]
[1725527263944,0.0537127,132.6,132.59,9.27]
[1725527265444,0.0537127,132.6,132.59,13.0412]
[1725527268350,0.0537127,132.6,132.58,1.4212]
[1725527268552,0.0537127,132.6,132.57,13.0055558]
[1725527268857,3.8247127,132.6,132.57,16.7770558]
[1725527270152,0.0537127,132.6,132.59,9.27]
[1725527271458,0.0537127,132.6,132.59,13.0412]
[1725527273760,9.27,132.68,132.59,46.35]
[1725527274058,3.7695,132.65,132.63,9.27]
[1725527274758,3.82280517,132.65,132.63,9.32509086]
[1725527276058,3.82280517,132.65,132.63,0.05509086]
[1725527276359,3.7697,132.64,132.63,0.05509086]
[1725527284369,3.771,132.6,132.57,30.6290774]
[1725527285359,3.82099217,132.6,132.57,30.68646699]
[1725527285565,3.7712,132.59,132.57,26.99898959]
[1725527285764,0.04999217,132.6,132.57,30.86260881]
[1725527286568,3.82099217,132.6,132.57,30.86260881]
[1725527287163,3.82099217,132.6,132.58,3.7714]
[1725527287366,3.82099217,132.6,132.57,27.09100881]
[1725527287367,0.04999217,132.6,132.57,27.09100881]
[1725527287570,0.04999217,132.6,132.59,23.17]
[1725527288071,0.04999217,132.6,132.59,26.9412]
[1725527299185,1.4215,132.68,132.61,3.7705]
[1725527299488,3.77,132.64,132.61,26.9405]
[1725527299980,3.77,132.64,132.63,9.26]
[1725527301779,0.05526464,132.65,132.63,9.26]
[1725527301982,0.05526464,132.65,132.64,3.75065992]
[1725527302790,0.05526464,132.65,132.63,13.0298]
[1725527303285,0.05526464,132.65,132.64,16.82938323]
[1725527303783,3.72153031,132.69,132.66,9.26]
[1725527303990,11.9423,132.72,132.66,9.26]
[1725527304192,3.7687,132.68,132.66,9.26]
[1725527304784,0.05118456,132.68,132.66,13.08115687]
[1725527305286,0.05118456,132.68,132.66,9.31215687]
[1725527305587,3.81998456,132.68,132.66,9.31215687]
[1725527306593,3.81998456,132.68,132.66,0.05215687]
[1725527310698,3.81998456,132.68,132.66,3.82135687]
[1725527311388,0.05118456,132.68,132.66,0.05215687]
[1725527311994,0.05118456,132.68,132.67,9.26]
[1725527314604,0.05118456,132.68,132.67,13.0289]
[1725527315088,0.05118456,132.68,132.67,16.73074018]
[1725527315700,0.05118456,132.68,132.67,12.96184018]
[1725527315893,0.05118456,132.68,132.67,9.26]
[1725527321009,3.81978456,132.68,132.67,9.26]
[1725527324510,3.7689,132.67,132.66,0.05215687]
[1725527359425,0.05118456,132.68,132.66,0.05215687]
[1725527359624,3.81988456,132.68,132.66,9.31215687]
[1725527369731,3.81988456,132.68,132.66,0.05215687]
[1725527369936,3.7689,132.67,132.66,0.05215687]
[1725527370233,13.0289,132.67,132.66,0.05215687]
[1725527370536,9.26,132.67,132.61,1.325]
[1725527371134,3.7698,132.64,132.61,5.0954]
[1725527371335,3.82709129,132.64,132.61,5.14815921]
[1725527372835,3.7701,132.63,132.61,10.63775921]
[1725527373035,3.7701,132.63,132.61,0.05275921]
[1725527373235,0.05729129,132.64,132.61,0.05275921]
[1725527373629,3.7702,132.63,132.61,0.05275921]
[1725527374035,0.05729129,132.64,132.61,0.05275921]
[1725527375239,3.7703,132.62,132.61,0.05275921]
[1725527396654,13.0303,132.62,132.61,0.05275921]
[1725527402270,3.772,132.56,132.55,1.3119]
[1725527402767,7.57764686,132.56,132.55,1.3119]
[1725527402959,3.772,132.56,132.55,1.3119]
[1725527403570,7.57029459,132.56,132.55,1.3119]
[1725527404167,3.772,132.56,132.55,1.3119]
[1725527405771,3.7723,132.55,132.54,1.44917448]
[1725527406074,3.7723,132.55,132.54,0.04967448]
[1725527407975,0.05475091,132.57,132.54,9.30967448]
[1725527408477,3.82665091,132.57,132.54,13.08207448]
[1725527409575,0.05475091,132.57,132.55,9.26]
[1725527409770,0.05475091,132.57,132.56,3.70245291]
[1725527410173,0.05475091,132.57,132.55,9.26]
[1725527410580,0.05475091,132.57,132.55,12.94471796]
[1725527410879,0.05475091,132.57,132.55,16.71681796]
[1725527411778,3.7716,132.58,132.55,16.71681796]
[1725527411975,7.47979034,132.59,132.56,3.772]
[1725527412281,3.7713,132.59,132.56,3.772]
[1725527412580,3.7713,132.59,132.57,1.3902]
[1725527412581,7.55374883,132.59,132.57,1.3902]
[1725527412785,7.60436036,132.59,132.57,1.44703429]
[1725527413277,3.82191153,132.59,132.57,1.44703429]
[1725527413683,0.05061153,132.59,132.57,1.44703429]
[1725527415180,3.82181153,132.59,132.57,1.44703429]
[1725527416583,0.05061153,132.59,132.57,10.70703429]
[1725527417583,3.82181153,132.59,132.57,14.47863429]
[1725527417781,2.7314,132.66,132.57,10.70703429]
[1725527417977,9.26,132.64,132.57,14.35851447]
[1725527418380,3.7708,132.61,132.58,3.7713]
[1725527418574,6.4830976,132.66,132.57,14.35851447]
[1725527418783,33.94081254,132.72,132.59,9.26]
[1725527419077,33.94081254,132.72,132.64,0.04867162]
[1725527419078,9.26,132.66,132.64,0.04867162]
[1725527419381,9.26,132.66,132.64,0.04803657]
[1725527419778,7.52411846,132.65,132.64,0.04803657]
[1725527421977,3.7695,132.65,132.64,0.04803657]
[1725527422179,7.55447141,132.66,132.64,0.04803657]
[1725527422379,3.7693,132.66,132.64,0.04803657]
[1725527422883,3.7695,132.65,132.64,0.04803657]
[1725527429286,3.87663915,132.67,132.64,3.81773657]
[1725527429287,7.64563915,132.67,132.64,3.81773657]
[1725527429586,3.82681279,132.67,132.64,0.04803657]
[1725527429981,0.05781279,132.67,132.65,3.7694]
[1725527430286,0.05781279,132.67,132.65,13.0294]
[1725527431987,0.05781279,132.67,132.66,3.7692]
[1725527432388,0.05781279,132.67,132.66,13.0292]
[1725527437581,2.802,132.72,132.69,3.768]
[1725527437787,2.802,132.72,132.66,9.26]
[1725527437788,3.77864984,132.72,132.66,3.79448375]
[1725527437989,9.26,132.73,132.67,9.26]
[1725527438199,3.7679,132.71,132.68,3.7684]
[1725527438684,3.82273932,132.71,132.68,3.82578472]
[1725527439691,3.82273932,132.71,132.68,0.05738472]
[1725527440185,0.05483932,132.71,132.68,0.05738472]
[1725527441293,3.7683,132.69,132.68,0.05738472]
[1725527442990,3.7683,132.69,132.68,9.31738472]
[1725527444682,3.7683,132.69,132.68,0.05738472]
[1725527448790,3.7681,132.7,132.68,9.31738472]
[1725527449101,3.7681,132.7,132.69,9.26]
[1725527450491,3.768,132.7,132.68,9.31738472]
[1725527451396,3.7683,132.69,132.68,9.31738472]
[1725527452392,0.05483932,132.71,132.68,9.31738472]
[1725527452590,0.05483932,132.71,132.7,9.26]
[1725527452802,0.05483932,132.71,132.7,13.028]
[1725527454103,0.05483932,132.71,132.69,13.0283]
[1725527456601,0.05483932,132.71,132.68,0.05738472]
[1725527456602,3.768,132.7,132.68,0.05738472]
[1725527457905,3.768,132.7,132.68,9.31738472]
[1725527458496,3.82263932,132.71,132.69,9.26]
[1725527459005,0.05483932,132.71,132.69,13.0282]
[1725527459208,0.05483932,132.71,132.7,9.26]
[1725527460998,3.82263932,132.71,132.7,9.26]
[1725527461199,0.05483932,132.71,132.68,0.05738472]
[1725527462509,3.7682,132.7,132.68,0.05738472]
[1725527464012,0.05483932,132.71,132.69,13.0282]
[1725527465305,3.82263932,132.71,132.69,13.0282]
[1725527466606,3.82263932,132.71,132.68,0.05738472]
[1725527466607,3.7682,132.7,132.68,0.05738472]
[1725527466806,0.05483932,132.71,132.68,0.05738472]
[1725527467107,9.26,132.69,132.68,0.05738472]
[1725527468313,13.0283,132.69,132.68,0.05738472]
[1725527469411,3.7698,132.64,132.62,9.26]
[1725527469612,3.7698,132.64,132.6,9.26]
[1725527469805,3.7698,132.64,132.6,13.0307]
[1725527470003,3.7698,132.64,132.6,9.26]
[1725527470202,3.77,132.63,132.6,9.26]
[1725527470620,3.81962647,132.63,132.6,9.31685344]
[1725527471309,3.81962647,132.63,132.6,13.08745344]
[1725527474413,3.81962647,132.63,132.62,9.26]
[1725527475616,3.81962647,132.63,132.6,13.08765344]
[1725527478920,0.04962647,132.63,132.62,9.26]
[1725527480620,0.04962647,132.63,132.62,13.0303]
[1725527483823,0.04962647,132.63,132.6,9.31685344]
[1725527484320,3.81982647,132.63,132.6,13.08755344]
[1725527486818,3.81982647,132.63,132.6,0.05685344]
[1725527486819,3.7706,132.62,132.6,0.05685344]
[1725527487013,0.04962647,132.63,132.6,0.05685344]
[1725527487215,3.7706,132.61,132.6,0.05685344]
[1725527489126,3.7704,132.62,132.6,0.05685344]
[1725527491727,3.7704,132.62,132.6,3.82765344]
[1725527494920,0.04962647,132.63,132.6,0.05685344]
[1725527495830,3.7705,132.62,132.6,0.05685344]
[1725527498031,3.7706,132.61,132.6,0.05685344]
[1725527502835,3.7704,132.62,132.6,0.05685344]
[1725527503436,3.7706,132.61,132.6,0.05685344]
[1725527503732,0.04962647,132.63,132.6,3.82775344]
[1725527503930,0.04962647,132.63,132.61,3.78771876]
[1725527504237,3.81982647,132.63,132.61,3.78771876]
[1725527505239,3.81982647,132.63,132.61,3.7706]
[1725527505440,3.81982647,132.63,132.62,3.76357875]
[1725527506133,3.81982647,132.63,132.6,13.08755344]
[1725527506329,3.7703,132.62,132.6,13.08755344]
[1725527506736,3.7703,132.62,132.6,9.31685344]
[1725527507338,3.7703,132.62,132.6,0.05685344]
[1725527508539,3.7706,132.61,132.6,0.05685344]
[1725527515644,3.7723,132.55,132.52,109.94514158]
[1725527515950,3.7723,132.55,132.52,113.71824158]
[1725527516347,3.7723,132.55,132.52,117.58332771]
[1725527516752,3.82539894,132.55,132.52,117.63939799]
[1725527517749,3.82539894,132.55,132.52,108.37939799]
[1725527518047,3.82539894,132.55,132.52,117.63939799]
[1725527520954,0.05309894,132.55,132.54,9.26]
[1725527522354,0.05309894,132.55,132.53,9.26]
[1725527522549,3.82539894,132.55,132.53,9.26]
[1725527526151,3.82539894,132.55,132.53,13.0575424]
[1725527527858,3.82539894,132.55,132.53,16.8304424]
[1725527529655,3.82539894,132.55,132.53,13.0575424]
[1725527531560,0.05309894,132.55,132.53,16.8303424]
[1725527532162,0.05309894,132.55,132.54,13.0326]
[1725527532458,3.75763823,132.63,132.57,9.26]
[1725527532658,3.771,132.6,132.57,9.26]
[1725527533057,3.75763823,132.63,132.57,9.26]
[1725527533367,0.05664351,132.61,132.59,0.05129627]
[1725527533753,3.771,132.6,132.59,0.05129627]
[1725527535464,13.031,132.6,132.59,0.05129627]
[1725527539766,13.031,132.6,132.53,3.7975424]
[1725527539767,3.7726,132.54,132.53,3.7975424]
[1725527540064,3.7726,132.54,132.53,3.85951214]
[1725527548277,3.7726,132.54,132.53,13.02952641]
[1725527549273,3.82519733,132.55,132.53,13.02952641]
[1725527552174,0.05279733,132.55,132.53,13.02952641]
[1725527552379,0.05279733,132.55,132.54,9.26]
[1725527552775,0.05279733,132.55,132.54,13.0326]
[1725527553285,3.771,132.6,132.57,3.7717]
[1725527553670,3.771,132.6,132.56,9.26]
[1725527554080,3.771,132.6,132.56,13.0318]
[1725527554376,0.05259746,132.59,132.57,0.05271373]
[1725527554774,0.05259746,132.59,132.57,3.82441373]
[1725527560881,3.82379746,132.59,132.57,0.05271373]
[1725527562786,3.82379746,132.59,132.57,3.82441373]
[1725527562987,3.82379746,132.59,132.57,0.05271373]
[1725527563677,3.7714,132.58,132.57,0.05271373]
[1725527564788,13.0314,132.58,132.57,0.05271373]
[1725527565784,3.7724,132.55,132.53,3.76952641]
[1725527565990,3.7724,132.55,132.52,104.45824158]
[1725527566188,9.26,132.57,132.53,3.70519203]
[1725527566385,1.372,132.59,132.53,3.70519203]
[1725527566386,9.26,132.55,132.53,3.70519203]
[1725527566589,9.26,132.55,132.51,3.7734]
[1725527566790,0.0573024,132.54,132.52,0.05420115]
[1725527567088,0.0573024,132.54,132.53,3.84819282]
[1725527567289,3.8299024,132.54,132.53,3.84819282]
[1725527567689,0.0573024,132.54,132.52,0.05420115]
[1725527568191,0.0573024,132.54,132.52,3.74165957]
[1725527568492,0.0573024,132.54,132.52,0.05420115]
[1725527568885,3.8301024,132.54,132.53,3.81207928]
[1725527570690,3.8301024,132.54,132.52,0.05420115]
[1725527571095,3.8301024,132.54,132.52,3.87647013]
[1725527575794,3.7729,132.53,132.52,0.05420115]
[1725527575997,9.26,132.53,132.45,2.7053]
[1725527576296,9.26,132.53,132.46,10.76978427]
[1725527576492,9.26,132.53,132.46,13.12]
[1725527576997,3.82404268,132.51,132.48,0.04786782]
[1725527577997,3.82404268,132.51,132.48,3.82216782]
[1725527579910,3.82404268,132.51,132.48,0.04786782]
[1725527583716,3.7738,132.5,132.48,0.04786782]
[1725527586808,3.82394268,132.51,132.48,13.08216782]
[1725527587803,0.05044268,132.51,132.49,3.774]
[1725527589817,0.05044268,132.51,132.5,3.7737]
[1725527592320,0.05044268,132.51,132.5,5.1889]
[1725527595622,0.05044268,132.51,132.5,14.4489]
[1725527599027,0.05044268,132.51,132.5,10.6752]
[1725527599629,0.05044268,132.51,132.48,0.04786782]
[1725527600122,3.7737,132.5,132.48,0.04786782]
[1725527601617,3.774,132.49,132.48,0.04786782]
[1725527623337,3.7739,132.5,132.48,9.30786782]
[1725527623639,0.05044268,132.51,132.48,9.30786782]
[1725527623843,3.82414268,132.51,132.48,13.08206782]
[1725527627542,3.82414268,132.51,132.48,3.82206782]
[1725527627743,3.82414268,132.51,132.48,13.08206782]
[1725527632248,3.82414268,132.51,132.48,3.82206782]
[1725527633750,3.7738,132.5,132.48,0.04786782]
[1725527641554,0.05044268,132.51,132.48,0.04786782]
[1725527641555,3.82404268,132.51,132.48,13.08216782]
[1725527643357,3.7737,132.5,132.48,9.30786782]
[1725527644453,3.7737,132.5,132.48,0.04786782]
[1725527647255,3.774,132.49,132.48,0.04786782]
[1725527647463,3.70904423,132.49,132.44,3.70338215]
[1725527647652,9.26,132.47,132.41,10.6657]
[1725527647848,3.775,132.46,132.42,8.81265412]
[1725527648359,0.04796018,132.45,132.43,0.05401769]
[1725527648657,21.29894098,132.44,132.43,0.05401769]
[1725527649353,8.6698419,132.44,132.43,0.05401769]
[1725527649559,21.29894098,132.44,132.43,0.05401769]
[1725527650362,8.6698419,132.44,132.43,0.05401769]
[1725527651253,3.82316018,132.45,132.43,0.05401769]
[1725527651458,8.67018466,132.44,132.43,0.05401769]